fUSD/lending_fUSD_20240515
["ID","MTS","AMOUNT","RATE_DAILY","PERIOD"]
[327064683,1715772653872,-586.12,0.00011897,2]
[327064684,1715772653881,-500.0,0.00011897,2]
[327064685,1715772653890,-586.12,0.00011897,2]
[327064686,1715772653899,-154.416085,0.00011897,2]
[327064687,1715772653908,-612.79,0.00011897,2]
[327064688,1715772653918,-612.79,0.00011897,2]
[327064689,1715772653927,-612.79,0.00011897,2]
[327064690,1715772653936,-612.79,0.00011897,2]
[327064691,1715772653946,-612.79,0.00011897,2]
[327064692,1715772653955,-612.79,0.00011897,2]
[327064693,1715772653964,-612.79,0.00011897,2]
[327064694,1715772653974,-612.79,0.00011897,2]
[327064695,1715772653983,-612.79,0.00011897,2]
[327064696,1715772653992,-612.79,0.00011897,2]
[327064697,1715772654001,-612.79,0.00011897,2]
[327064698,1715772654010,-151.0,0.00011897,2]
[327064699,1715772654020,-612.79,0.00011897,2]
[327064700,1715772654028,-151.0,0.00011897,2]
[327064701,1715772654038,-612.79,0.00011897,2]
[327064702,1715772654047,-500.0,0.00011897,2]
[327064703,1715772654057,-500.0,0.00011897,2]
[327064704,1715772654066,-500.0,0.00011897,2]
[327064705,1715772654076,-500.0,0.00011897,2]
[327064706,1715772654085,-488.06,0.00011897,2]
[327064707,1715772654094,-500.0,0.00011897,2]
[327064708,1715772654103,-500.0,0.00011897,2]
[327064709,1715772654112,-500.0,0.00011897,2]
[327064710,1715772654121,-151.0,0.00011897,2]
[327064711,1715772654131,-151.0,0.00011897,2]
[327064712,1715772654140,-500.0,0.00011897,2]
[327064713,1715772654149,-500.0,0.00011897,2]
[327064714,1715772654158,-500.0,0.00011897,2]
[327064715,1715772654168,-500.0,0.00011897,2]
[327064716,1715772654177,-178.03842842,0.00011897,2]
[327064717,1715772654186,-500.0,0.00011897,2]
[327064718,1715772654196,-500.0,0.00011897,2]
[327064719,1715772654206,-500.0,0.00011897,2]
[327064720,1715772654216,-174.82,0.00011897,2]
[327064721,1715772654225,-151.0,0.00011897,2]
[327064722,1715772654235,-151.0,0.00011897,2]
[327064723,1715772654244,-500.0,0.00011897,2]
[327064724,1715772654253,-500.0,0.00011897,2]
[327064725,1715772654262,-500.0,0.00011897,2]
[327064726,1715772654271,-500.0,0.00011897,2]
[327064727,1715772654280,-508.86130811,0.00011897,2]
[327064728,1715772654289,-500.0,0.00011897,2]
[327064729,1715772654298,-500.0,0.00011897,2]
[327064730,1715772654307,-500.0,0.00011897,2]
[327064731,1715772654317,-500.0,0.00011897,2]
[327064732,1715772654326,-500.0,0.00011897,2]
[327064733,1715772654336,-500.0,0.00011897,2]
[327064734,1715772654345,-500.0,0.00011897,2]
[327064735,1715772654355,-500.0,0.00011897,2]
[327064736,1715772654364,-500.0,0.00011897,2]
[327064737,1715772654373,-500.0,0.00011897,2]
[327064738,1715772654383,-500.0,0.00011897,2]
[327064739,1715772654392,-1498.42,0.00011897,2]
[327064740,1715772654401,-1498.42,0.00011897,2]
[327064741,1715772654411,-1498.42,0.00011897,2]
[327064742,1715772654420,-1498.42,0.00011897,2]
[327064743,1715772654429,-1498.42,0.00011897,2]
[327064744,1715772654439,-1498.42,0.00011897,2]
[327064745,1715772654449,-1498.42,0.00011897,2]
[327064746,1715772654459,-1498.42,0.00011897,2]
[327064747,1715772654468,-1498.42,0.00011897,2]
[327064748,1715772654478,-1498.42,0.00011897,2]
[327064749,1715772654487,-1498.42,0.00011897,2]
[327064750,1715772654496,-155.051742,0.00011897,2]
[327064751,1715772654507,-500.0,0.00011897,2]
[327064752,1715772654516,-500.0,0.00011897,2]
[327064753,1715772654526,-500.0,0.00011897,2]
[327064754,1715772654535,-187.16,0.00011897,2]
[327064755,1715772654544,-500.0,0.00011897,2]
[327064756,1715772654554,-275.62,0.00011897,2]
[327064757,1715772654564,-468.661517,0.00011897,2]
[327064758,1715772654574,-468.661517,0.00011897,2]
[327064759,1715772654583,-500.0,0.00011897,2]
[327064760,1715772654593,-545.2372977,0.00011897,2]
[327064761,1715772654602,-500.0,0.00011897,2]
[327064762,1715772654612,-500.0,0.00011897,2]
[327064763,1715772654621,-500.0,0.00011897,2]
[327064764,1715772654631,-500.0,0.00011897,2]
[327064765,1715772654640,-468.661517,0.00011897,2]
[327064766,1715772654649,-468.661517,0.00011897,2]
[327064767,1715772654658,-500.0,0.00011897,2]
[327064768,1715772654668,-500.0,0.00011897,2]
[327064769,1715772654677,-500.0,0.00011897,2]
[327064770,1715772654694,-592.6,0.00011897,2]
[327064771,1715772654704,-503.015175,0.00011897,2]
[327064772,1715772654713,-503.015175,0.00011897,2]
[327064773,1715772654722,-503.015175,0.00011897,2]
[327064774,1715772654733,-503.015175,0.00011897,2]
[327064775,1715772654743,-641.02824224,0.00011897,2]
[327064776,1715772654752,-500.0,0.00011897,2]
[327064777,1715772654762,-151.0,0.00011897,2]
[327064778,1715772654773,-4157.61632,0.00011897,2]
[327064779,1715772654784,-500.0,0.00011897,2]
[327064780,1715772654794,-151.0,0.00011897,2]
[327064781,1715772654803,-4157.61632,0.00011897,2]
[327064782,1715772654813,-243.09332696,0.00011897,2]
[327064783,1715772654823,-4157.61632,0.00011897,2]
[327064784,1715772654832,-4157.61632,0.00011897,2]
[327064785,1715772654842,-152.994922,0.00011897,2]
[327064786,1715772654852,-40.69078418,0.00011897,2]
[327064787,1715772654912,-486.51470674,0.00011896,2]
[327064788,1715772654922,-0.11462463,0.00011897,2]
[327064789,1715772871563,6928.34778758,6.94e-05,2]
[327064795,1715773024037,4306.14577015,0.00012,30]
[327064803,1715773607874,251.56,8.49e-05,2]
[327064831,1715773832486,-260.48203453,8.54e-05,2]
[327064832,1715773832497,-932.39496547,8.541e-05,2]
[327064833,1715773832509,-302.02478597,8.541e-05,2]
[327064834,1715773832518,-266.19309669,8.542e-05,2]
[327064835,1715773832529,-172.47,9.731e-05,2]
[327064836,1715773832540,-151.45149906,0.0001,2]
[327064837,1715773832560,-152.42747997,0.0001,2]
[327064838,1715773832570,-250.0,0.00010147,2]
[327064839,1715773832580,-150.0,0.00010205,2]
[327064840,1715773832589,-150.0,0.00010205,2]
[327064841,1715773832600,-3601.33174885,0.00010206,2]
[327064842,1715773832619,-260.28942302,0.00010206,2]
[327064848,1715773838281,-5979.39882813,0.00010206,2]
[327064849,1715773838291,-1500.0,0.00010216,2]
[327064850,1715773838301,-150.0,0.00010219,2]
[327064851,1715773838310,-1151.1,0.00010261,2]
[327064852,1715773838320,-397.54,0.00010261,2]
[327064853,1715773838329,-893.39,0.00010273,2]
[327064854,1715773838339,-250.0,0.00010346,2]
[327064855,1715773838348,-372.8,0.00010428,2]
[327064856,1715773838357,-251.56,0.00010754,2]
[327064857,1715773838366,-235.09,0.00010894,2]
[327064858,1715773838376,-4000.0,0.00010959,3]
[327064859,1715773838385,-282.3483767,0.00011,2]
[327064860,1715773838394,-830.4,0.00011181,2]
[327064861,1715773838405,-868.95,0.00011181,2]
[327064862,1715773838415,-16285.02279515,0.00011199,2]
[327064863,1715773838522,-19723.79028977,0.00011199,2]
[327064864,1715773838534,-6104.88000001,0.00011199,2]
[327065053,1715773843278,-421.63583172,0.00011199,2]
[327065059,1715773843463,-300.0,0.00011199,2]
[327065060,1715773843476,-3119.0,0.00011199,2]
[327065061,1715773843588,-2447.85230205,0.00011199,2]
[327065091,1715773846197,-250.0,0.00010854,2]
[327065092,1715773846207,-610.80599786,0.00011199,2]
[327065093,1715773846220,-4130.1507,0.00011199,2]
[327065094,1715773846231,-724.02500001,0.00011199,2]
[327065095,1715773846337,-624.04,0.00011199,2]
[327065105,1715774266966,-1234.41975144,8.828e-05,2]
[327065106,1715774288055,-226.4,8.829e-05,2]
[327065107,1715774378062,-4000.0,0.00010311,2]
[327065108,1715774378725,-1834.2667,0.00010311,2]
[327065109,1715774405331,-165.15,0.00010411,2]
[327065110,1715774408055,400.08074576,8.829e-05,2]
[327065111,1715774411171,969.75341453,8.829e-05,2]
[327065113,1715774435170,294.71833934,8.829e-05,2]
[327065114,1715774444324,9279.11817131,8.829e-05,2]
[327065116,1715774473043,203.83,0.00010411,2]
[327065117,1715774544706,548.53577545,0.00010411,2]
[327065118,1715774549560,249.23,8.456e-05,2]
[327065119,1715774556545,377.77859997,0.00010411,2]
[327065121,1715774622575,215.08,8.685e-05,2]
[327065124,1715775002288,704.05,3e-06,2]
[327065144,1715775031539,-1000.0,0.00010634,2]
[327065145,1715775031548,-643.1326905,0.00010649,2]
[327065146,1715775031558,-188.07,0.0001065,2]
[327065147,1715775031567,-286.24,0.00010748,2]
[327065148,1715775031577,-250.0,0.00010748,2]
[327065149,1715775031586,-176.87,0.00010795,2]
[327065150,1715775031596,-494.8373095,0.00010797,2]
[327065151,1715775031615,-99.7426905,0.00010797,2]
[327065152,1715775031624,-215.08,0.00010949,2]
[327065153,1715775031635,-4000.0,0.00010959,3]
[327065154,1715775031644,-200.0,0.00011,2]
[327065155,1715775031653,-3400.0,0.000111,4]
[327065156,1715775031663,-14213.15570994,0.00011189,2]
[327065157,1715775031672,-2901.83350281,0.00011199,2]
[327065179,1715775037524,-643.1326905,0.00010633,2]
[327065180,1715775037534,-10056.8673095,0.00011199,2]
[327065190,1715775039503,-74700.0,0.00011199,2]
[327065191,1715775039684,-2253.67956524,0.00011199,2]
[327065192,1715775039711,-5166.66706937,0.00011199,2]
[327065193,1715775039721,-155.0,0.00011199,2]
[327065194,1715775039731,-3000.0,0.00011199,2]
[327065195,1715775039740,-2195.95213921,0.000112,2]
[327065196,1715775039749,-6800.0,0.000112,4]
[327065197,1715775039758,-10300.0,0.000113,4]
[327065198,1715775039768,-13700.0,0.000114,4]
[327065199,1715775039777,-12099.0001,0.000115,2]
[327065200,1715775039788,-17100.0,0.000115,4]
[327065201,1715775039797,-3400.0,0.000116,4]
[327065202,1715775039808,-1065.67024231,0.00011659,2]
[327065203,1715775039817,-970.0,0.00011663,2]
[327065204,1715775039827,-741.656,0.00011663,2]
[327065205,1715775039837,-543.0,0.00011663,2]
[327065206,1715775039847,-914.209,0.00011663,2]
[327065207,1715775039856,-1790.0,0.00011663,2]
[327065208,1715775039866,-1006.319,0.00011663,2]
[327065209,1715775039876,-2351.0,0.00011663,2]
[327065210,1715775039886,-444.0,0.00011663,2]
[327065211,1715775039896,-215.0,0.00011663,2]
[327065212,1715775039905,-451.377,0.00011663,2]
[327065213,1715775039915,-1464.0,0.00011663,2]
[327065214,1715775039924,-1342.0,0.00011663,2]
[327065215,1715775039933,-154.11,0.00011686,2]
[327065216,1715775039942,-37721.51125301,0.00011696,2]
[327065217,1715775039975,-166562.96044699,0.00011696,2]
[327065218,1715775039984,-3400.0,0.000117,4]
[327065219,1715775039993,-150.0,0.00011747,2]
[327065220,1715775040001,-1062.31815202,0.0001176,2]
[327065221,1715775040011,-320.84709975,0.00011778,2]
[327065222,1715775040020,-24070.11777415,0.0001178,2]
[327065223,1715775040029,-500.0,0.0001178,2]
[327065224,1715775040039,-500.0,0.0001178,2]
[327065225,1715775040049,-297.20474774,0.0001178,2]
[327065227,1715775040058,-500.0,0.0001178,2]
[327065228,1715775040067,-500.0,0.0001178,2]
[327065229,1715775040076,-500.0,0.0001178,2]
[327065230,1715775040085,-500.0,0.0001178,2]
[327065231,1715775040094,-500.0,0.0001178,2]
[327065232,1715775040104,-500.0,0.0001178,2]
[327065233,1715775040113,-359.08550562,0.0001178,2]
[327065234,1715775040123,-500.0,0.0001178,2]
[327065235,1715775040132,-514.26410024,0.0001178,2]
[327065236,1715775040142,-237.64135596,0.0001178,2]
[327065237,1715775040151,-503.25429322,0.0001178,2]
[327065238,1715775040160,-500.0,0.0001178,2]
[327065239,1715775040170,-514.92309372,0.0001178,2]
[327065240,1715775040179,-513.0753452,0.0001178,2]
[327065241,1715775040189,-500.0,0.0001178,2]
[327065242,1715775040198,-524.13652744,0.0001178,2]
[327065243,1715775040210,-528.45,0.0001178,2]
[327065244,1715775040219,-530.74000885,0.0001178,2]
[327065245,1715775040229,-500.0,0.0001178,2]
[327065246,1715775040238,-500.0,0.0001178,2]
[327065247,1715775040247,-500.0,0.0001178,2]
[327065248,1715775040256,-529.52235284,0.0001178,2]
[327065249,1715775040265,-500.0,0.0001178,2]
[327065250,1715775040274,-517.20761171,0.0001178,2]
[327065251,1715775040283,-500.0,0.0001178,2]
[327065252,1715775040293,-500.0,0.0001178,2]
[327065253,1715775040302,-599.26,0.0001178,2]
[327065254,1715775040311,-500.0,0.0001178,2]
[327065255,1715775040320,-500.0,0.0001178,2]
[327065256,1715775040330,-500.0,0.0001178,2]
[327065257,1715775040339,-500.0,0.0001178,2]
[327065258,1715775040349,-527.24550607,0.0001178,2]
[327065259,1715775040358,-526.52073398,0.0001178,2]
[327065260,1715775040368,-597.63,0.0001178,2]
[327065261,1715775040381,-522.58633292,0.0001178,2]
[327065262,1715775040391,-500.0,0.0001178,2]
[327065263,1715775040400,-500.0,0.0001178,2]
[327065264,1715775040411,-500.0,0.0001178,2]
[327065265,1715775040420,-500.0,0.0001178,2]
[327065266,1715775040429,-521.72751455,0.0001178,2]
[327065267,1715775040438,-500.0,0.0001178,2]
[327065268,1715775040450,-500.0,0.0001178,2]
[327065269,1715775040462,-302.09534072,0.0001178,2]
[327065270,1715775040471,-500.0,0.0001178,2]
[327065271,1715775040480,-506.46582191,0.0001178,2]
[327065272,1715775040490,-522.1591356,0.0001178,2]
[327065273,1715775040499,-500.0,0.0001178,2]
[327065274,1715775040509,-520.26470215,0.0001178,2]
[327065275,1715775040519,-500.0,0.0001178,2]
[327065276,1715775040528,-465.36244457,0.0001178,2]
[327065277,1715775040538,-500.0,0.0001178,2]
[327065278,1715775040548,-509.155402,0.0001178,2]
[327065279,1715775040557,-500.0,0.0001178,2]
[327065280,1715775040567,-500.0,0.0001178,2]
[327065281,1715775040576,-500.0,0.0001178,2]
[327065282,1715775040586,-500.0,0.0001178,2]
[327065283,1715775040596,-500.0,0.0001178,2]
[327065284,1715775040606,-465.75066575,0.0001178,2]
[327065285,1715775040615,-508.92412029,0.0001178,2]
[327065286,1715775040625,-317.64971832,0.0001178,2]
[327065287,1715775040636,-500.0,0.0001178,2]
[327065288,1715775040645,-207.60401396,0.0001178,2]
[327065289,1715775040655,-150.0,0.0001178,2]
[327065290,1715775040664,-500.0,0.0001178,2]
[327065291,1715775040674,-500.0,0.0001178,2]
[327065292,1715775040684,-527.68152253,0.0001178,2]
[327065293,1715775040694,-500.0,0.0001178,2]
[327065294,1715775040703,-500.0,0.0001178,2]
[327065295,1715775040716,-510.59736024,0.0001178,2]
[327065296,1715775040727,-526.76789894,0.0001178,2]
[327065297,1715775040737,-500.0,0.0001178,2]
[327065298,1715775040747,-500.0,0.0001178,2]
[327065299,1715775040757,-500.0,0.0001178,2]
[327065300,1715775040766,-500.0,0.0001178,2]
[327065301,1715775040776,-500.0,0.0001178,2]
[327065302,1715775040785,-500.0,0.0001178,2]
[327065303,1715775040795,-513.97711714,0.0001178,2]
[327065304,1715775040805,-500.0,0.0001178,2]
[327065305,1715775040815,-394.27774839,0.0001178,2]
[327065306,1715775040824,-450.89688275,0.0001178,2]
[327065307,1715775040834,-151.0,0.0001178,2]
[327065308,1715775040843,-500.0,0.0001178,2]
[327065309,1715775040852,-500.0,0.0001178,2]
[327065310,1715775040862,-500.0,0.0001178,2]
[327065311,1715775040872,-500.0,0.0001178,2]
[327065312,1715775040882,-500.0,0.0001178,2]
[327065313,1715775040891,-500.0,0.0001178,2]
[327065314,1715775040901,-500.0,0.0001178,2]
[327065315,1715775040911,-500.0,0.0001178,2]
[327065316,1715775040921,-529.27904424,0.0001178,2]
[327065317,1715775040931,-500.0,0.0001178,2]
[327065318,1715775040941,-502.81547588,0.0001178,2]
[327065319,1715775040952,-505.80303537,0.0001178,2]
[327065320,1715775040964,-500.0,0.0001178,2]
[327065321,1715775040975,-500.0,0.0001178,2]
[327065322,1715775040986,-509.86369484,0.0001178,2]
[327065323,1715775040996,-516.07068401,0.0001178,2]
[327065324,1715775041006,-151.0,0.0001178,2]
[327065325,1715775041016,-500.0,0.0001178,2]
[327065326,1715775041026,-151.0,0.0001178,2]
[327065327,1715775041036,-504.02308296,0.0001178,2]
[327065328,1715775041045,-502.23609566,0.0001178,2]
[327065329,1715775041054,-500.0,0.0001178,2]
[327065330,1715775041064,-298.390571,0.0001178,2]
[327065331,1715775041074,-500.0,0.0001178,2]
[327065332,1715775041083,-151.0,0.0001178,2]
[327065333,1715775041093,-151.0,0.0001178,2]
[327065334,1715775041103,-500.0,0.0001178,2]
[327065335,1715775041113,-543.54289546,0.0001178,2]
[327065336,1715775041122,-178.011737,0.0001178,2]
[327065337,1715775041132,-500.0,0.0001178,2]
[327065338,1715775041142,-500.0,0.0001178,2]
[327065339,1715775041152,-524.81933543,0.0001178,2]
[327065340,1715775041162,-500.0,0.0001178,2]
[327065341,1715775041171,-506.61675779,0.0001178,2]
[327065342,1715775041181,-500.0,0.0001178,2]
[327065343,1715775041190,-500.0,0.0001178,2]
[327065344,1715775041200,-500.0,0.0001178,2]
[327065345,1715775041211,-500.0,0.0001178,2]
[327065346,1715775041220,-500.0,0.0001178,2]
[327065347,1715775041229,-529.50413162,0.0001178,2]
[327065348,1715775041238,-514.37209735,0.0001178,2]
[327065349,1715775041248,-500.0,0.0001178,2]
[327065350,1715775041258,-521.52999705,0.0001178,2]
[327065351,1715775041267,-509.94156165,0.0001178,2]
[327065352,1715775041276,-526.4051809,0.0001178,2]
[327065353,1715775041286,-500.95536968,0.0001178,2]
[327065354,1715775041295,-500.0,0.0001178,2]
[327065355,1715775041306,-500.0,0.0001178,2]
[327065356,1715775041315,-500.0,0.0001178,2]
[327065357,1715775041325,-151.0,0.0001178,2]
[327065358,1715775041334,-151.0,0.0001178,2]
[327065359,1715775041344,-151.0,0.0001178,2]
[327065360,1715775041353,-505.98691485,0.0001178,2]
[327065361,1715775041363,-500.0,0.0001178,2]
[327065362,1715775041376,-500.0,0.0001178,2]
[327065363,1715775041385,-160.314259,0.0001178,2]
[327065364,1715775041395,-157.17923,0.0001178,2]
[327065365,1715775041405,-387.297227,0.0001178,2]
[327065366,1715775041415,-500.0,0.0001178,2]
[327065367,1715775041424,-589.55879228,0.0001178,2]
[327065368,1715775041434,-151.0,0.0001178,2]
[327065369,1715775041444,-387.297227,0.0001178,2]
[327065370,1715775041458,-549.67121725,0.0001178,2]
[327065371,1715775041467,-1037.756526,0.0001178,2]
[327065372,1715775041476,-500.0,0.0001178,2]
[327065373,1715775041485,-522.2596616,0.0001178,2]
[327065374,1715775041495,-500.0,0.0001178,2]
[327065375,1715775041505,-1037.756526,0.0001178,2]
[327065376,1715775041515,-500.0,0.0001178,2]
[327065377,1715775041524,-151.0,0.0001178,2]
[327065378,1715775041534,-558.48,0.0001178,2]
[327065379,1715775041544,-500.0,0.0001178,2]
[327065380,1715775041553,-500.0,0.0001178,2]
[327065381,1715775041563,-500.0,0.0001178,2]
[327065382,1715775041572,-500.0,0.0001178,2]
[327065383,1715775041581,-526.59330148,0.0001178,2]
[327065384,1715775041591,-500.0,0.0001178,2]
[327065385,1715775041599,-516.31273344,0.0001178,2]
[327065386,1715775041609,-501.46371335,0.0001178,2]
[327065387,1715775041618,-500.0,0.0001178,2]
[327065388,1715775041628,-500.0,0.0001178,2]
[327065389,1715775041638,-500.0,0.0001178,2]
[327065390,1715775041647,-497.97295661,0.0001178,2]
[327065391,1715775041656,-499.99722211,0.0001178,2]
[327065392,1715775041666,-500.0,0.0001178,2]
[327065393,1715775041675,-500.0,0.0001178,2]
[327065394,1715775041685,-524.42147317,0.0001178,2]
[327065395,1715775041694,-500.0,0.0001178,2]
[327065396,1715775041703,-500.0,0.0001178,2]
[327065397,1715775041714,-522.88820185,0.0001178,2]
[327065398,1715775041724,-500.0,0.0001178,2]
[327065399,1715775041733,-500.0,0.0001178,2]
[327065400,1715775041743,-500.0,0.0001178,2]
[327065401,1715775041752,-519.46095107,0.0001178,2]
[327065402,1715775041762,-151.0,0.0001178,2]
[327065403,1715775041772,-535.20171304,0.0001178,2]
[327065404,1715775041782,-500.0,0.0001178,2]
[327065405,1715775041792,-500.0,0.0001178,2]
[327065406,1715775041802,-500.0,0.0001178,2]
[327065407,1715775041811,-500.0,0.0001178,2]
[327065408,1715775041820,-500.0,0.0001178,2]
[327065409,1715775041996,-438.30493,0.0001178,2]
[327065410,1715775042006,-500.0,0.0001178,2]
[327065411,1715775042016,-663.22,0.0001178,2]
[327065412,1715775042026,-299.0,0.0001178,2]
[327065413,1715775042035,-438.30493,0.0001178,2]
[327065414,1715775042045,-500.0,0.0001178,2]
[327065415,1715775042055,-151.0,0.0001178,2]
[327065416,1715775042065,-500.0,0.0001178,2]
[327065417,1715775042074,-500.0,0.0001178,2]
[327065418,1715775042083,-500.0,0.0001178,2]
[327065419,1715775042093,-500.0,0.0001178,2]
[327065420,1715775042102,-500.0,0.0001178,2]
[327065421,1715775042112,-500.0,0.0001178,2]
[327065422,1715775042121,-500.0,0.0001178,2]
[327065423,1715775042131,-500.0,0.0001178,2]
[327065424,1715775042140,-500.0,0.0001178,2]
[327065425,1715775042149,-500.0,0.0001178,2]
[327065426,1715775042159,-151.0,0.0001178,2]
[327065428,1715775042167,-500.0,0.0001178,2]
[327065430,1715775042176,-500.0,0.0001178,2]
[327065431,1715775042185,-151.0,0.0001178,2]
[327065433,1715775042195,-500.0,0.0001178,2]
[327065434,1715775042203,-264.948961,0.0001178,2]
[327065435,1715775042214,-151.0,0.0001178,2]
[327065436,1715775042223,-500.0,0.0001178,2]
[327065437,1715775042232,-151.0,0.0001178,2]
[327065438,1715775042241,-151.0,0.0001178,2]
[327065439,1715775042250,-500.0,0.0001178,2]
[327065440,1715775042260,-500.0,0.0001178,2]
[327065442,1715775042269,-901.16,0.0001178,2]
[327065444,1715775042278,-264.948961,0.0001178,2]
[327065446,1715775042287,-502.94415144,0.0001178,2]
[327065447,1715775042296,-562.58,0.0001178,2]
[327065449,1715775042305,-500.0,0.0001178,2]
[327065450,1715775042314,-500.0,0.0001178,2]
[327065451,1715775042324,-500.0,0.0001178,2]
[327065452,1715775042332,-151.0,0.0001178,2]
[327065453,1715775042342,-151.0,0.0001178,2]
[327065454,1715775042351,-500.0,0.0001178,2]
[327065455,1715775042360,-500.0,0.0001178,2]
[327065456,1715775042370,-500.0,0.0001178,2]
[327065457,1715775042383,-500.0,0.0001178,2]
[327065458,1715775042392,-151.0,0.0001178,2]
[327065459,1715775042401,-151.0,0.0001178,2]
[327065460,1715775042411,-500.0,0.0001178,2]
[327065461,1715775042420,-500.0,0.0001178,2]
[327065462,1715775042430,-500.0,0.0001178,2]
[327065463,1715775042439,-500.0,0.0001178,2]
[327065464,1715775042448,-500.0,0.0001178,2]
[327065465,1715775042460,-509.1637353,0.0001178,2]
[327065466,1715775042470,-500.0,0.0001178,2]
[327065467,1715775042479,-500.0,0.0001178,2]
[327065468,1715775042488,-500.0,0.0001178,2]
[327065469,1715775042497,-500.0,0.0001178,2]
[327065470,1715775042507,-500.0,0.0001178,2]
[327065471,1715775042517,-180.947803,0.0001178,2]
[327065472,1715775042526,-180.947803,0.0001178,2]
[327065473,1715775042536,-500.0,0.0001178,2]
[327065474,1715775042545,-180.947803,0.0001178,2]
[327065475,1715775042554,-180.947803,0.0001178,2]
[327065476,1715775042563,-500.0,0.0001178,2]
[327065477,1715775042572,-500.0,0.0001178,2]
[327065478,1715775042582,-500.0,0.0001178,2]
[327065479,1715775042591,-586.24,0.0001178,2]
[327065480,1715775042600,-500.0,0.0001178,2]
[327065481,1715775042610,-500.0,0.0001178,2]
[327065482,1715775042619,-500.0,0.0001178,2]
[327065483,1715775042629,-500.0,0.0001178,2]
[327065484,1715775042638,-500.0,0.0001178,2]
[327065485,1715775042648,-3326.093056,0.0001178,2]
[327065486,1715775042657,-3326.093056,0.0001178,2]
[327065487,1715775042667,-151.0,0.0001178,2]
[327065488,1715775042677,-151.0,0.0001178,2]
[327065489,1715775042686,-3326.093056,0.0001178,2]
[327065490,1715775042695,-3326.093056,0.0001178,2]
[327065491,1715775042705,-500.0,0.0001178,2]
[327065492,1715775042716,-559.68,0.0001178,2]
[327065493,1715775042725,-151.0,0.0001178,2]
[327065494,1715775042733,-151.0,0.0001178,2]
[327065495,1715775042742,-500.0,0.0001178,2]
[327065496,1715775042751,-500.0,0.0001178,2]
[327065497,1715775042761,-500.0,0.0001178,2]
[327065498,1715775042770,-500.0,0.0001178,2]
[327065499,1715775042779,-500.0,0.0001178,2]
[327065500,1715775042789,-500.0,0.0001178,2]
[327065501,1715775042798,-500.0,0.0001178,2]
[327065502,1715775042807,-500.0,0.0001178,2]
[327065503,1715775042818,-500.0,0.0001178,2]
[327065504,1715775042829,-500.0,0.0001178,2]
[327065505,1715775042839,-500.0,0.0001178,2]
[327065506,1715775042850,-500.0,0.0001178,2]
[327065507,1715775042860,-374.929214,0.0001178,2]
[327065508,1715775042870,-374.929214,0.0001178,2]
[327065509,1715775042879,-216.92928353,0.0001178,2]
[327065510,1715775042913,-283.07071647,0.0001178,2]
[327065511,1715775042922,-500.0,0.0001178,2]
[327065512,1715775042931,-500.0,0.0001178,2]
[327065513,1715775042940,-315.7829701,0.0001178,2]
[327065514,1715775042951,-184.2170299,0.0001178,2]
[327065515,1715775042961,-114.42469812,0.0001178,2]
[327065516,1715775043008,-260.50451588,0.0001178,2]
[327065517,1715775043017,-374.929214,0.0001178,2]
[327065518,1715775043026,-500.0,0.0001178,2]
[327065519,1715775043035,-500.0,0.0001178,2]